lending/lending_fUSD_20260330
["ID","MTS","AMOUNT","RATE_DAILY","PERIOD"]
[419079296,1774841447109,-150.0,0.00014247,2]
[419079298,1774841447118,-1000.0,0.00014247,2]
[419079300,1774841447128,-862.68219772,0.00014247,2]
[419079302,1774841447138,-1000.0,0.00014247,2]
[419079304,1774841447149,-1000.0,0.00014247,2]
[419079306,1774841447159,-13725.13086481,0.00014261,2]
[419079307,1774841447168,-21540.46025516,0.00014261,2]
[419079309,1774841447177,-2985.98816498,0.00014317,2]
[419079312,1774841447188,-7442.0,0.00014344,5]
[419079314,1774841447197,-5945.0,0.00014344,5]
[419079315,1774841447207,-868.417081,0.00014344,2]
[419079317,1774841447217,-868.417081,0.00014344,2]
[419079319,1774841447227,-868.417081,0.00014344,2]
[419079321,1774841447237,-868.417081,0.00014344,2]
[419079323,1774841447247,-308.47,0.00014366,2]
[419079326,1774841447257,-2744.83,0.00014384,2]
[419079328,1774841447267,-2000.0,0.000144,2]
[419079330,1774841447277,-451.707835,0.00014419,2]
[419079367,1774841447684,-451.707835,0.00014419,2]
[419079368,1774841447694,-451.707835,0.00014419,2]
[419079369,1774841447704,-451.707835,0.00014419,2]
[419079370,1774841447713,-500.0,0.0001442,2]
[419079371,1774841447724,-318.16,0.00014467,2]
[419079372,1774841447734,-339.0074,0.000145,17]
[419079373,1774841447744,-1592.87721993,0.00014653,2]
[419079374,1774841447754,-233.51889341,0.00014653,2]
[419079375,1774841447763,-151.0,0.00014653,2]
[419079376,1774841447773,-194.72792766,0.00014653,2]
[419079377,1774841447782,-200.0,0.00014653,2]
[419079378,1774841447792,-7668.98088338,0.0001475,2]
[419079379,1774841447802,-1500.0,0.00014795,2]
[419079380,1774841447811,-1500.0,0.00014795,2]
[419079381,1774841447820,-1500.0,0.00014795,2]
[419079382,1774841447830,-3747.69214969,0.00014839,2]
[419079383,1774841447840,-500.0,0.00014871,2]
[419079384,1774841447849,-200.0,0.00014871,2]
[419079385,1774841447858,-500.0,0.00014883,2]
[419079386,1774841447868,-472.91804058,0.00014887,2]
[419079387,1774841447878,-1262.0,0.00014991,2]
[419079388,1774841447888,-150.0,0.00014991,2]
[419079389,1774841447898,-925.0,0.00014991,2]
[419079390,1774841447907,-1220.965,0.00014991,2]
[419079391,1774841447917,-1045.0,0.00014991,2]
[419079392,1774841447926,-6014.0,0.00014991,2]
[419079393,1774841447935,-900.0,0.00015068,2]
[419079394,1774841447945,-2744.83,0.00015068,2]
[419079395,1774841447954,-315.0,0.00015072,2]
[419079396,1774841447963,-151.0,0.0001508,2]
[419079397,1774841447974,-151.0,0.0001508,2]
[419079398,1774841447984,-13725.13086481,0.0001508,2]
[419079399,1774841447994,-21540.46025516,0.0001508,2]
[419079400,1774841448004,-9035.0,0.00015097,2]
[419079401,1774841448014,-3620.0,0.00015101,2]
[419079402,1774841448024,-2808.0,0.00015162,2]
[419079403,1774841448033,-2000.0,0.000152,2]
[419079404,1774841448043,-151.0,0.00015201,2]
[419079405,1774841448053,-1070.657225,0.00015201,2]
[419079406,1774841448063,-1070.657225,0.00015201,2]
[419079407,1774841448072,-1070.657225,0.00015201,2]
[419079408,1774841448082,-1070.657225,0.00015201,2]
[419079409,1774841448091,-1651.81367706,0.00015201,2]
[419079410,1774841448102,-280.12530819,0.00015201,2]
[419079411,1774841448111,-151.0,0.00015201,2]
[419079412,1774841448121,-201.93286099,0.00015201,2]
[419079413,1774841448130,-200.0,0.00015201,2]
[419079414,1774841448140,-10000.0,0.00015205,2]
[419079415,1774841448149,-315.0,0.00015229,2]
[419079416,1774841448158,-315.0,0.00015269,2]
[419079417,1774841448168,-315.0,0.00015317,2]
[419079418,1774841448177,-500.0,0.00015321,2]
[419079419,1774841448187,-315.0,0.00015332,2]
[419079420,1774841448196,-2000.0,0.00015342,2]
[419079421,1774841448206,-2000.0,0.00015342,2]
[419079422,1774841448216,-2000.0,0.00015342,2]
[419079423,1774841448227,-315.0,0.00015353,2]
[419079424,1774841448236,-199.445249,0.00015361,2]
[419079425,1774841448246,-1000.0,0.000154,5]
[419079426,1774841448255,-422.32,0.00015418,2]
[419079427,1774841448265,-200.0,0.000155,5]
[419079428,1774841448275,-315.0,0.00015529,2]
[419079429,1774841448284,-1571.0,0.00015561,2]
[419079430,1774841448293,-571.029725,0.00015561,2]
[419079431,1774841448302,-571.029725,0.00015561,2]
[419079432,1774841448312,-571.029725,0.00015561,2]
[419079433,1774841448322,-571.029725,0.00015561,2]
[419079434,1774841448331,-151.0,0.00015561,2]
[419079435,1774841448341,-151.0,0.00015561,2]
[419079436,1774841448350,-1000.0,0.00015583,2]
[419079437,1774841448360,-150.0,0.00015598,2]
[419079438,1774841448369,-315.0,0.000156,2]
[419079439,1774841448379,-2000.0,0.000156,2]
[419079440,1774841448388,-200.0,0.000156,5]
[419079441,1774841448398,-152.10956883,0.0001561,2]
[419079442,1774841448407,-14621.6778852,0.00015614,2]
[419079443,1774841448416,-62568.81841854,0.00015614,2]
[419079444,1774841449894,-150.0,0.00013699,2]
[419079445,1774841449904,-150.0,0.00013973,2]
[419079446,1774841449914,-2351.17361746,0.00015614,2]
[419079447,1774841450991,-135533.45757413,0.00015614,2]
[419079448,1774841451009,-2769.80224774,0.00015614,2]
[419079449,1774841485338,2434.5483,8.422e-05,2]
[419079450,1774841551836,366.23,8.117e-05,2]
[419079451,1774841567465,1524.8017,8.423e-05,2]
[419079452,1774841567490,5000.01,8.423e-05,2]
[419079453,1774841567514,9450.01,8.423e-05,2]
[419079454,1774841567537,10000.01,8.423e-05,2]
[419079455,1774841567561,10000.01,8.423e-05,2]
[419079456,1774841567584,10000.01,8.423e-05,2]
[419079457,1774841567609,10000.01,8.423e-05,2]
[419079458,1774841567634,10000.01,8.423e-05,2]
[419079459,1774841567660,10000.01,8.423e-05,2]
[419079460,1774841567683,10000.01,8.423e-05,2]
[419079461,1774841567709,10000.01,8.423e-05,2]
[419079462,1774841567733,10000.01,8.423e-05,2]
[419079463,1774841567768,50354.1195,8.423e-05,2]
[419079464,1774841607484,639.09825183,8.423e-05,2]
[419079465,1774841614442,1000.0,8.195e-05,2]
[419079466,1774841614933,905.93,8.415e-05,2]
[419079467,1774841679557,470.15,8.204e-05,2]
[419079468,1774841739232,-364.25016769,8.532e-05,2]
[419079469,1774841742471,287.1,7.974e-05,2]
[419079470,1774841795411,-345.74983231,8.532e-05,2]
[419079471,1774841795434,-250.0,8.647e-05,2]
[419079472,1774841795457,-1000.0,8.762e-05,2]
[419079473,1774841795479,-150.0,8.762e-05,2]
[419079474,1774841795500,-250.0,8.851e-05,2]
[419079475,1774841795523,-700.0,8.9e-05,2]
[419079476,1774841795545,-800.0,8.984e-05,2]
[419079477,1774841795567,-150.0,8.984e-05,2]
[419079478,1774841795588,-150.0,8.984e-05,2]
[419079479,1774841795610,-176.89558659,8.984e-05,2]
[419079480,1774841795634,-600.0,9.077e-05,2]
[419079481,1774841795655,-200.0,9.1e-05,2]
[419079482,1774841795678,-580.0,9.316e-05,2]
[419079483,1774841796056,-300.0,9.372e-05,2]
[419079484,1774841796080,-1200.0,9.373e-05,2]
[419079485,1774841796103,-300.0,9.373e-05,2]
[419079486,1774841796125,-1383.0554544,9.373e-05,2]
[419079487,1774841796149,-4262.25517341,9.374e-05,2]
[419079488,1774841796173,-250.0,9.386e-05,2]
[419079489,1774841796198,-640.0,9.495e-05,2]
[419079490,1774841796221,-150.0,9.6e-05,2]
[419079491,1774841796245,-516.61,9.626e-05,2]
[419079492,1774841796267,-645.43395329,9.644e-05,2]
[419079493,1774842015486,1045.76,8e-05,2]
[419079494,1774842292130,855.98,7.835e-05,2]
[419079496,1774842478010,644.45,7.343e-05,2]
[419079497,1774842481327,2641.45,8.5e-05,2]
[419079498,1774842492091,1714.11,8.5e-05,2]
[419079499,1774842492120,427.99,8.5e-05,2]
[419079500,1774842539993,877.75,7.757e-05,2]
[419079509,1774842632820,-407.0,9.69e-05,2]
[419079510,1774842632830,-250.0,9.695e-05,2]
[419079511,1774842632840,-228.63481586,9.7e-05,2]
[419079513,1774842632849,-1162.0,9.71e-05,2]
[419079515,1774842632858,-1184.0,9.729e-05,2]
[419079517,1774842632868,-200.09824965,9.729e-05,2]
[419079519,1774842632878,-1365.0,9.748e-05,2]
[419079520,1774842632887,-1200.0,9.998e-05,2]
[419079521,1774842632896,-197.30488479,9.998e-05,2]
[419079522,1774842632908,-102.69511521,9.998e-05,2]
[419079523,1774842632918,-237.45346814,9.998e-05,2]
[419079524,1774842632929,-62.54653186,9.998e-05,2]
[419079525,1774842632938,-1200.0,9.998e-05,2]
[419079526,1774842632948,-300.0,9.999e-05,2]
[419079527,1774842632957,-300.0,9.999e-05,2]
[419079528,1774842632967,-150.99,0.0001,2]
[419079529,1774842632976,-150.99,0.0001,2]
[419079530,1774842632985,-802.03164386,0.0001,2]
[419079531,1774842632995,-151.0,0.0001,2]
[419079532,1774842633004,-150.0,0.000103,2]
[419079533,1774842633014,-3396.67,0.000103,2]
[419079534,1774842633023,-3318.94,0.000103,2]
[419079535,1774842633424,-150.0,0.00010305,2]
[419079536,1774842633434,-3674.53,0.00010306,2]
[419079537,1774842633444,-9999.99,0.00010306,2]
[419079538,1774842633454,-525.0,0.00010472,2]
[419079539,1774842633463,-250.0,0.00010659,2]
[419079540,1774842633473,-1000.0,0.00010667,2]
[419079541,1774842633482,-500.0,0.00010668,2]
[419079542,1774842633491,-500.0,0.00010668,2]
[419079543,1774842633501,-500.0,0.00010668,2]
[419079544,1774842633510,-200.0,0.00010668,2]
[419079545,1774842633519,-500.0,0.00010668,2]
[419079546,1774842633528,-500.0,0.00010668,2]
[419079547,1774842633537,-500.0,0.00010668,2]
[419079548,1774842633546,-500.0,0.00010668,2]
[419079549,1774842633556,-500.0,0.00010668,2]
[419079550,1774842633565,-500.0,0.00010668,2]
[419079551,1774842633574,-500.0,0.00010668,2]
[419079552,1774842633583,-500.0,0.00010668,2]
[419079553,1774842633593,-151.0,0.00010668,2]
[419079554,1774842633602,-151.0,0.00010668,2]
[419079555,1774842633611,-151.0,0.00010668,2]
[419079556,1774842633621,-500.0,0.00010668,2]
[419079557,1774842633630,-500.0,0.00010668,2]
[419079558,1774842633640,-151.0,0.00010668,2]
[419079559,1774842633649,-500.0,0.00010668,2]
[419079560,1774842633659,-151.0,0.00010668,2]
[419079561,1774842633668,-151.0,0.00010668,2]
[419079562,1774842633677,-151.0,0.00010668,2]
[419079563,1774842633687,-500.0,0.00010668,2]
[419079564,1774842633697,-151.0,0.00010668,2]
[419079565,1774842633706,-151.0,0.00010668,2]
[419079566,1774842633715,-500.0,0.00010668,2]
[419079567,1774842633725,-151.0,0.00010668,2]
[419079568,1774842633734,-500.0,0.00010668,2]
[419079569,1774842633743,-500.0,0.00010668,2]
[419079570,1774842633753,-151.0,0.00010668,2]
[419079571,1774842633763,-151.0,0.00010668,2]
[419079572,1774842633772,-151.0,0.00010668,2]
[419079573,1774842633782,-500.0,0.00010668,2]
[419079574,1774842633792,-151.0,0.00010668,2]
[419079575,1774842633802,-151.0,0.00010668,2]
[419079576,1774842633812,-500.0,0.00010668,2]
[419079577,1774842633821,-151.0,0.00010668,2]
[419079578,1774842633831,-151.0,0.00010668,2]
[419079579,1774842633840,-500.0,0.00010668,2]
[419079580,1774842633850,-151.0,0.00010668,2]
[419079581,1774842633860,-151.0,0.00010668,2]
[419079582,1774842633869,-500.0,0.00010668,2]
[419079583,1774842633879,-151.0,0.00010668,2]
[419079584,1774842633888,-151.0,0.00010668,2]
[419079585,1774842633898,-151.0,0.00010668,2]
[419079586,1774842633908,-151.0,0.00010668,2]
[419079587,1774842633917,-151.0,0.00010668,2]
[419079588,1774842633927,-151.0,0.00010668,2]
[419079589,1774842633936,-151.0,0.00010668,2]
[419079590,1774842633946,-151.0,0.00010668,2]
[419079591,1774842633955,-151.0,0.00010668,2]
[419079592,1774842633964,-151.0,0.00010668,2]
[419079593,1774842633974,-151.0,0.00010668,2]
[419079594,1774842633983,-151.0,0.00010668,2]
[419079595,1774842633993,-1443.27779277,0.00010668,2]
[419079596,1774842634002,-151.0,0.00010668,2]
[419079597,1774842634014,-500.0,0.00010668,2]
[419079598,1774842634024,-1002.09629327,0.00010673,2]
[419079599,1774842634034,-2624.82,0.00010674,2]
[419079600,1774842634045,-619.32,0.00010682,2]
[419079601,1774842634054,-332.0,0.00010737,2]
[419079602,1774842634065,-451.0,0.00010777,2]
[419079603,1774842634074,-298.0,0.00010801,2]
[419079604,1774842634084,-200.09824964,0.00010898,2]
[419079605,1774842634093,-564.47601303,0.00010959,2]
[419079606,1774842634103,-1680.0,0.00010998,2]
[419079607,1774842634112,-420.0,0.00010998,2]
[419079608,1774842634121,-1680.0,0.00010998,2]
[419079609,1774842634131,-300.0,0.00010999,2]
[419079610,1774842634140,-151.0,0.00011108,2]
[419079611,1774842634149,-168.11,0.00011109,2]
[419079612,1774842634158,-151.0,0.00011116,2]
[419079613,1774842634167,-151.0,0.00011129,2]
[419079614,1774842634177,-1300.0,0.00011137,2]
[419079615,1774842634187,-200.0,0.00011216,2]
[419079616,1774842634196,-438.0,0.00011266,2]
[419079617,1774842634206,-451.0,0.00011289,2]
[419079618,1774842634216,-231.0,0.00011311,2]
[419079619,1774842634227,-255.0,0.00011315,2]
[419079620,1774842634237,-364.0,0.00011327,2]
[419079621,1774842634247,-1484.0,0.00011349,2]
[419079622,1774842634259,-196.8375,0.000117,7]
[419079623,1774842634269,-179.84829757,0.00011859,2]
[419079624,1774842634278,-179.84829757,0.00011859,2]
[419079625,1774842634289,-587.0,0.00012098,2]
[419079626,1774842634300,-1531.0,0.00012098,2]
[419079627,1774842634310,-200.0,0.0001235,2]
[419079628,1774842634320,-422.22934078,0.00012364,2]
[419079629,1774842634333,-581.08188661,0.00012364,2]
[419079630,1774842634343,-26609.76,0.00012365,2]
[419079631,1774842634352,-429.0,0.00012428,2]
[419079632,1774842634361,-168.24,0.00012532,2]
[419079633,1774842634371,-2500.0,0.00012617,2]
[419079634,1774842634381,-168.13154679,0.00012634,2]
[419079635,1774842634390,-4522.02150083,0.00012634,2]
[419079636,1774842634399,-1986.66320008,0.00012634,2]
[419079639,1774842638565,-151.0,0.000103,2]
[419079640,1774842638575,-3109.62477028,0.00012634,2]
[419079641,1774842638585,-151.0,0.00012634,2]
[419079642,1774842638595,-500.0,0.00012658,2]
[419079643,1774842638605,-527.59439363,0.00012673,2]
[419079644,1774842638614,-187.0687659,0.00012673,2]
[419079645,1774842638624,-202.3310111,0.00012673,2]
[419079646,1774842638633,-163.76148119,0.00012707,2]
[419079647,1774842638643,-500.0,0.00012716,2]
[419079648,1774842638652,-500.0,0.00012716,2]
[419079649,1774842638662,-500.0,0.00012716,2]
[419079650,1774842638672,-500.0,0.00012716,2]
[419079651,1774842638681,-500.0,0.00012716,2]
[419079652,1774842638691,-500.0,0.00012716,2]
[419079653,1774842638701,-88.7754091,0.00012716,2]
[419079654,1774842638724,-339.99751001,0.00012716,2]
[419079655,1774842638736,-71.22708089,0.00012716,2]
[419079656,1774842638746,-288.18328341,0.00012716,2]
[419079660,1774842642177,-211.81671659,0.00012716,2]
[419079661,1774842642187,-500.0,0.00012716,2]
[419079662,1774842642197,-173.38762243,0.00012716,2]
[419079663,1774842642208,-326.61237757,0.00012716,2]
[419079664,1774842642219,-286.17102415,0.00012716,2]
[419079665,1774842642234,-213.82897585,0.00012716,2]
[419079666,1774842642244,-500.0,0.00012716,2]
[419079667,1774842642253,-500.0,0.00012716,2]
[419079668,1774842642263,-500.0,0.00012716,2]
[419079669,1774842642273,-500.0,0.00012716,2]
[419079670,1774842642282,-97.28074252,0.00012716,2]
[419079671,1774842642307,-402.71925748,0.00012716,2]
[419079672,1774842642316,-71.21410085,0.00012716,2]
[419079676,1774842643673,-428.78589915,0.00012716,2]
[419079677,1774842643683,-500.0,0.00012716,2]
[419079678,1774842643693,-281.75233626,0.00012716,2]
[419079679,1774842643731,-218.24766374,0.00012716,2]
[419079680,1774842643740,-300.9354798,0.00012716,2]
[419079681,1774842643750,-500.0,0.00012716,2]
[419079682,1774842643759,-362.89917711,0.00012716,2]
[419079683,1774842643949,-137.10082289,0.00012716,2]
[419079684,1774842643959,-341.41573396,0.00012716,2]
[419079692,1774842646473,-158.58426604,0.00012716,2]
[419079693,1774842646482,-500.0,0.00012716,2]
[419079694,1774842646492,-500.0,0.00012716,2]
[419079695,1774842646501,-500.0,0.00012716,2]
[419079696,1774842646510,-206.91733174,0.00012716,2]
[419079697,1774842646518,-500.0,0.00012716,2]
[419079698,1774842646528,-500.0,0.00012716,2]
[419079699,1774842646537,-500.0,0.00012716,2]
[419079700,1774842646546,-500.0,0.00012716,2]
[419079701,1774842646555,-500.0,0.00012716,2]
[419079702,1774842646564,-500.0,0.00012716,2]
[419079703,1774842646574,-602.66764819,0.00012716,2]
[419079704,1774842646582,-478.67681789,0.00012716,2]
[419079705,1774842646591,-500.0,0.00012716,2]
[419079706,1774842646600,-503.84261475,0.00012716,2]
[419079707,1774842646609,-585.03423015,0.00012716,2]
[419079717,1774842860201,1576.47,5.938e-05,2]
[419079718,1774842860401,1576.47,6.25e-05,2]
[419079719,1774842860586,1576.47,6.563e-05,2]
[419079720,1774842860772,1576.47,6.875e-05,2]
[419079721,1774842860951,1576.47,7.188e-05,2]
[419079722,1774842861143,1576.47,7.5e-05,2]
[419079723,1774842861383,541.19,7.813e-05,2]
[419079724,1774842861407,1035.28,7.813e-05,2]
[419079725,1774842861574,1576.47,8.125e-05,2]
[419079726,1774842861766,1576.47,8.438e-05,2]
[419079734,1774843214323,826.29,8.138e-05,2]
[419079736,1774843337856,622.63,7.906e-05,2]
[419079737,1774843401943,798.23,7.649e-05,2]
[419079738,1774843598938,166.0,0.0002,120]
[419079739,1774843657627,8715.20358405,8e-05,2]
[419079740,1774843788738,393.91202793,7.888e-05,2]
[419079741,1774843830834,496.14,7.578e-05,2]
[419079764,1774843833420,-531.73649619,8.75e-05,2]
[419079765,1774843833436,-1044.73350381,8.75e-05,2]
[419079766,1774843833446,-0.88933415,8.805e-05,2]
[419079767,1774843833459,-249.11066585,8.805e-05,2]
[419079768,1774843833469,-332.19,8.86e-05,2]
[419079769,1774843833479,-1122.44589175,9.063e-05,2]
[419079770,1774843833516,-454.02410825,9.063e-05,2]
[419079771,1774843833526,-1576.47,9.375e-05,2]
[419079772,1774843833535,-66377.96414616,9.5e-05,3]
[419079773,1774843833547,-57860.69283626,9.5e-05,3]
[419079775,1774843837635,-500.0,9.499e-05,2]
[419079776,1774843837645,-3054.12476196,9.5e-05,3]
[419079777,1774843837692,-4176.2348432,9.5e-05,3]
[419079778,1774843837857,-134710.00000001,9.5e-05,3]
[419079779,1774843837868,-361.14731903,9.5e-05,3]
[419079796,1774843840116,-3049.27936112,9.5e-05,3]
[419079797,1774843840127,-511.0,9.5e-05,3]
[419079798,1774843840223,-1042.77534231,9.5e-05,3]
[419079799,1774843840280,-6514.75415118,9.5e-05,3]
[419079813,1774843842896,-219.5285433,9.5e-05,3]
[419079814,1774843842938,-132033.81270371,9.5e-05,3]
[419079815,1774843842949,-70799.99999999,9.5e-05,3]
[419079816,1774843842960,-4172.329027,9.5e-05,3]
[419079824,1774843846048,-11188.83341716,9.5e-05,3]
[419079825,1774843846064,-10077.07125778,9.5e-05,3]
[419079826,1774843846129,-262.6,9.5e-05,3]
[419079828,1774843846141,-4502.66368818,9.5e-05,3]
[419079886,1774843921838,2956.52,8.5e-05,2]
[419079888,1774844080994,5000.01,8.541e-05,2]
[419079889,1774844081017,4288.99,8.541e-05,2]
[419079890,1774844139204,934.26,8.067e-05,2]
[419079891,1774844505268,528.61,7.835e-05,2]
[419079892,1774844505901,406.91,8.523e-05,2]
[419079893,1774844567962,1050.0,8.244e-05,2]
[419079894,1774844813375,756.74,7.935e-05,2]
[419079895,1774844875085,1100.0,7.757e-05,2]
[419079896,1774844875945,654.41,8.354e-05,2]
[419079897,1774845015932,1618.17,8.5e-05,2]
[419079898,1774845026789,404.54,8.5e-05,2]
[419079913,1774845033729,-7452.63,8.794e-05,2]
[419079914,1774845033738,-1200.0,8.927e-05,2]
[419079915,1774845033748,-1852.42,8.928e-05,2]
[419079916,1774845033758,-300.0,9.012e-05,2]
[419079917,1774845033767,-162.0,9.012e-05,2]
[419079918,1774845033777,-300.0,9.012e-05,2]
[419079919,1774845033787,-900.0,9.013e-05,2]
[419079920,1774845033797,-431.16,9.178e-05,2]
[419079921,1774845033806,-236.34,9.235e-05,2]
[419079922,1774845033816,-486.15,9.352e-05,2]
[419079923,1774845033825,-150.0,9.398e-05,2]
[419079924,1774845033835,-500.0,9.399e-05,2]
[419079925,1774845033844,-160.27497638,9.399e-05,2]
[419079926,1774845033853,-500.0,9.399e-05,2]
[419079927,1774845033863,-500.0,9.399e-05,2]
[419079928,1774845033873,-500.0,9.399e-05,2]
[419079929,1774845033882,-500.0,9.399e-05,2]
[419079930,1774845033892,-500.0,9.399e-05,2]
[419079931,1774845033902,-500.0,9.399e-05,2]
[419079932,1774845033911,-500.0,9.399e-05,2]
[419079933,1774845033920,-500.0,9.399e-05,2]
[419079934,1774845033930,-412.87835981,9.399e-05,2]
[419079935,1774845033940,-500.0,9.399e-05,2]
[419079936,1774845033950,-500.0,9.399e-05,2]
[419079937,1774845033959,-500.0,9.399e-05,2]
[419079938,1774845033970,-500.0,9.399e-05,2]
[419079939,1774845033981,-500.0,9.399e-05,2]
[419079940,1774845033992,-500.0,9.399e-05,2]
[419079941,1774845034002,-500.0,9.399e-05,2]
[419079942,1774845034011,-500.0,9.399e-05,2]
[419079943,1774845034021,-500.0,9.399e-05,2]
[419079944,1774845034030,-500.0,9.399e-05,2]
[419079945,1774845034039,-500.0,9.399e-05,2]
[419079946,1774845034048,-500.0,9.399e-05,2]
[419079947,1774845034058,-500.0,9.399e-05,2]
[419079948,1774845034068,-500.0,9.399e-05,2]
[419079949,1774845034078,-500.0,9.399e-05,2]
[419079950,1774845034089,-500.0,9.399e-05,2]
[419079951,1774845034099,-500.0,9.399e-05,2]
[419079952,1774845034109,-500.0,9.399e-05,2]
[419079953,1774845034118,-500.0,9.399e-05,2]
[419079954,1774845034129,-500.0,9.399e-05,2]
[419079955,1774845034138,-299.72996874,9.399e-05,2]
[419079956,1774845034148,-500.0,9.399e-05,2]
[419079957,1774845034158,-500.0,9.399e-05,2]
[419079958,1774845034171,-500.0,9.399e-05,2]
[419079959,1774845034180,-500.0,9.399e-05,2]
[419079960,1774845034190,-500.0,9.399e-05,2]
[419079961,1774845034199,-500.0,9.399e-05,2]
[419079962,1774845034209,-500.0,9.399e-05,2]
[419079963,1774845034218,-500.0,9.399e-05,2]
[419079964,1774845034228,-500.0,9.399e-05,2]
[419079965,1774845034240,-375.37730161,9.399e-05,2]
[419079966,1774845034249,-64222.16300601,9.4e-05,2]
[419079967,1774845038760,404.54,8.5e-05,2]
[419079977,1774845040590,-262615.24759399,9.4e-05,2]
[419079978,1774845040600,-500.0,9.4e-05,2]
[419079979,1774845040610,-1000.0,9.499e-05,2]
[419079980,1774845040619,-1000.0,9.499e-05,2]
[419079981,1774845040629,-3.90805379,9.5e-05,3]
[419079982,1774845040640,-273.2442196,9.5e-05,3]
[419079983,1774845040652,-862.24814973,9.5e-05,3]
[419079984,1774845040674,-2365.275,9.5e-05,3]
[419079985,1774845040686,-2511.0,9.5e-05,3]
[419079986,1774845040698,-1844.09,9.5e-05,3]
[419080006,1774845041056,-31928.84748089,9.5e-05,3]
[419080008,1774845041065,-156.0,9.5e-05,2]
[419080010,1774845041075,-1523.0,9.5e-05,2]
[419080011,1774845041084,-156.0,9.5e-05,2]
[419080013,1774845041094,-1523.0,9.5e-05,2]
[419080015,1774845041103,-168.76883123,9.5e-05,2]
[419080017,1774845041112,-1523.0,9.5e-05,2]
[419080019,1774845041122,-156.0,9.5e-05,2]
[419080021,1774845041130,-1523.0,9.5e-05,2]
[419080023,1774845041140,-1523.0,9.5e-05,2]
[419080024,1774845041149,-1523.0,9.5e-05,2]
[419080026,1774845041158,-1523.0,9.5e-05,2]
[419080028,1774845041168,-1523.0,9.5e-05,2]
[419080030,1774845041177,-1523.0,9.5e-05,2]
[419080032,1774845041187,-1523.0,9.5e-05,2]
[419080034,1774845041197,-1523.0,9.5e-05,2]
[419080036,1774845041206,-1523.0,9.5e-05,2]
[419080038,1774845041214,-401.42164142,9.5e-05,2]
[419080040,1774845041224,-1523.0,9.5e-05,2]
[419080042,1774845041233,-585.36,9.5e-05,2]
[419080044,1774845041244,-150.0,9.5e-05,2]
[419080045,1774845041254,-161.0,9.5e-05,2]
[419080046,1774845041263,-160.0,9.5e-05,2]
[419080047,1774845041272,-161.0,9.5e-05,2]
[419080048,1774845041281,-205.54151621,9.5e-05,2]
[419080049,1774845041291,-265.00925089,9.533e-05,2]
[419080050,1774845041300,-501.31097275,9.533e-05,2]
[419080051,1774845041309,-200.69101128,9.533e-05,2]
[419080052,1774845041318,-500.0,9.533e-05,2]
[419080053,1774845041328,-4939.35,9.554e-05,2]
[419080054,1774845041338,-150.99,9.554e-05,2]
[419080055,1774845041347,-13199.8048669,9.554e-05,2]
[419080056,1774845041357,-997.6269511,9.554e-05,2]
[419080057,1774845041367,-14090.3931388,9.554e-05,2]
[419080058,1774845041376,-131261.8402352,9.554e-05,2]
[419080059,1774845041386,-9999.99,9.554e-05,2]
[419080060,1774845041395,-299.99,9.554e-05,2]
[419080062,1774845041405,-421.55,9.554e-05,2]
[419080064,1774845041415,-4254.77,9.554e-05,2]
[419080066,1774845041424,-5000.0,9.673e-05,2]
[419080068,1774845041434,-250.0,9.673e-05,2]
[419080070,1774845041444,-500.0,9.674e-05,2]
[419080072,1774845041454,-1576.47,9.688e-05,2]
[419080074,1774845041463,-9999.99,9.688e-05,2]
[419080076,1774845041472,-181.9,9.688e-05,2]
[419080077,1774845041482,-181.9,9.688e-05,2]
[419080078,1774845041491,-181.9,9.688e-05,2]
[419080079,1774845041501,-181.9,9.688e-05,2]